bitfinex/quotes_SOLUSD_20250811
["timestamp","ask_amount","ask_price","bid_price","bid_amount"]
[1754926248146,86.88933777,178.73,178.72,0.06]
[1754926248842,45.69591526,178.73,178.72,0.06]
[1754926249036,45.69591526,178.73,178.72,0.74]
[1754926249236,85.79591526,178.73,178.72,0.74]
[1754926249740,106.89058495,178.73,178.72,0.06]
[1754926250322,100.90213083,178.73,178.72,0.06]
[1754926250541,106.89058495,178.73,178.72,0.06]
[1754926250738,100.90213083,178.73,178.72,0.06]
[1754926250948,106.89058495,178.73,178.72,0.06]
[1754926251450,85.79591526,178.73,178.72,0.74]
[1754926251822,85.79591526,178.73,178.72,6.72845412]
[1754926251823,179.83870851,178.73,178.72,6.72845412]
[1754926252024,32.69870851,178.73,178.72,6.72845412]
[1754926252334,28.3,178.73,178.72,6.72845412]
[1754926252734,26.0,178.75,178.72,6.72845412]
[1754926252933,0.03,178.79,178.74,5.98845412]
[1754926253247,4.15983124,178.79,178.78,5.98845412]
[1754926253437,60.15983124,178.79,178.78,5.98845412]
[1754926253942,34.15983124,178.79,178.78,5.98845412]
[1754926254251,26.0,178.78,178.77,5.98845412]
[1754926254748,30.03,178.79,178.77,5.98845412]
[1754926254959,26.0,178.77,178.72,0.06]
[1754926256026,26.0,178.77,178.76,5.98845412]
[1754926256226,0.03,178.79,178.76,5.98845412]
[1754926256439,0.03,178.79,178.72,0.06]
[1754926256639,0.03,178.79,178.78,5.98845412]
[1754926256842,26.03,178.79,178.78,5.98845412]
[1754926258849,0.03,178.79,178.78,5.98845412]
[1754926261166,0.03,178.79,178.78,11.58192095]
[1754926261456,0.03,178.79,178.78,17.57037507]
[1754926261956,0.03,178.79,178.78,11.58192095]
[1754926262654,0.03,178.79,178.78,32.67659064]
[1754926262847,0.03,178.81,178.8,11.97690824]
[1754926263232,0.03,178.81,178.8,11.58129528]
[1754926263856,0.03,178.81,178.8,5.59284116]
[1754926264153,0.03,178.81,178.8,11.58129528]
[1754926264852,0.03,178.81,178.8,5.98845412]
[1754926265250,0.03,178.81,178.8,11.58129528]
[1754926265447,0.03,178.81,178.8,5.98845412]
[1754926266956,0.03,178.81,178.77,5.59377971]
[1754926266957,0.03,178.81,178.79,5.98845412]
[1754926267136,0.03,178.81,178.8,5.98845412]
[1754926268335,0.71,178.81,178.8,5.98845412]
[1754926268536,0.03,178.81,178.8,5.98845412]
[1754926268736,0.03,178.81,178.78,5.59337783]
[1754926268936,0.03,178.81,178.8,5.98845412]
[1754926270141,0.03,178.81,178.8,11.58129528]
[1754926270342,0.03,178.81,178.8,17.5697494]
[1754926271064,0.03,178.81,178.8,11.58129528]
[1754926273844,0.03,178.81,178.8,17.5697494]
[1754926274962,0.03,178.83,178.81,15.10621557]
[1754926275139,0.03,178.83,178.82,66.70688532]
[1754926275981,0.03,178.85,178.82,66.70688532]
[1754926275982,0.03,178.85,178.83,15.10621557]
[1754926276155,0.03,178.85,178.84,5.98845412]
[1754926277745,0.03,178.85,178.84,11.58004436]
[1754926278158,0.03,178.85,178.84,26.68625993]
[1754926284669,0.03,178.85,178.84,28.92458493]
[1754926284886,0.03,178.89,178.87,41.10621557]
[1754926285168,0.03,178.91,178.88,15.10621557]
[1754926285357,0.03,178.91,178.9,27.08312381]
[1754926285540,0.03,178.91,178.9,61.07466969]
[1754926286250,0.03,178.91,178.9,67.06312381]
[1754926286755,0.03,178.91,178.9,66.66438461]
[1754926287154,0.03,178.91,178.9,72.65283873]
[1754926290863,0.72,178.96,178.91,15.10621557]
[1754926291068,0.72,178.96,178.95,5.98845412]
[1754926291260,0.2,178.97,178.95,45.94845412]
[1754926291465,0.92,178.97,178.95,45.94845412]
[1754926291670,0.92,178.97,178.96,5.98845412]
[1754926292375,0.2,178.97,178.96,5.98845412]
[1754926292671,0.2,178.97,178.96,26.68251054]
[1754926293043,0.72,179.02,179.01,5.98845412]
[1754926293248,0.2,179.03,179.01,45.94845412]
[1754926293448,0.2,179.03,179.02,21.09466969]
[1754926293726,0.2,179.03,179.02,15.10621557]
[1754926293971,0.2,179.03,179.02,21.09466969]
[1754926294475,0.2,179.03,179.02,15.10621557]
[1754926294677,0.2,179.03,179.02,26.68063773]
[1754926295305,0.2,179.03,179.02,5.98845412]
[1754926295511,0.92,179.03,179.02,45.94845412]
[1754926298379,0.2,179.03,179.02,45.94845412]
[1754926298908,0.92,179.03,179.02,45.94845412]
[1754926299496,0.2,179.03,179.02,66.64063773]
[1754926301003,0.2,179.03,179.02,67.14063773]
[1754926302103,0.2,179.03,179.02,61.15218361]
[1754926302290,0.2,179.03,179.02,67.14063773]
[1754926302608,0.03,179.07,179.03,15.10621557]
[1754926302797,0.03,179.07,179.06,5.98845412]
[1754926302989,0.03,179.07,179.06,66.59938989]
[1754926303384,0.75,179.07,179.06,66.59938989]
[1754926303623,0.75,179.07,179.06,45.90845412]
[1754926304813,0.75,179.07,179.05,5.98845412]
[1754926305117,0.75,179.07,179.01,20.68943257]
[1754926305118,0.75,179.07,179.06,45.88845412]
[1754926307321,0.75,179.07,179.06,39.9]
[1754926307487,0.75,179.07,179.06,45.88845412]
[1754926309513,0.75,179.07,179.06,39.9]
[1754926310121,6.33440833,179.07,179.06,39.9]
[1754926310301,16.01337833,179.07,179.06,39.9]
[1754926310618,16.01346185,179.07,179.01,5.98845412]
[1754926310817,16.01346185,179.07,179.0,15.10621557]
[1754926310818,0.72,179.06,179.03,5.98845412]
[1754926311009,0.72,179.06,179.05,5.98845412]
[1754926311201,0.72,179.06,179.05,39.9]
[1754926311392,0.72,179.06,179.05,45.88845412]
[1754926312302,6.70845412,179.06,179.01,5.98845412]
[1754926312504,5.98845412,179.02,178.98,5.98845412]
[1754926312837,5.98845412,179.0,178.99,39.88]
[1754926312999,5.58659217,179.0,178.99,39.88]
[1754926313208,6.30659217,179.0,178.99,39.88]
[1754926313515,0.72,179.0,178.99,39.88]
[1754926314101,0.72,179.02,178.99,39.88]
[1754926314334,0.72,179.01,178.99,39.88]
[1754926314622,5.585698,179.03,178.99,39.88]
[1754926314816,0.72,179.01,178.99,39.88]
[1754926315018,11.57504629,179.0,178.99,39.88]
[1754926315211,0.72,179.0,178.99,39.88]
[1754926316612,6.70845412,179.0,178.99,39.88]
[1754926317005,0.72,179.0,178.99,39.88]
[1754926317201,140.0,179.01,178.99,45.86845412]
[1754926317407,0.72,179.04,179.0,5.98845412]
[1754926317593,0.72,179.04,178.99,39.88]
[1754926317594,0.72,179.03,179.02,5.98845412]
[1754926317795,3.70431674,179.04,179.02,5.98845412]
[1754926318003,0.72,179.05,179.03,45.86845412]
[1754926318916,0.67,179.04,179.03,39.88]
[1754926319110,0.67,179.04,179.03,45.86845412]
[1754926319324,4.37466711,179.06,179.03,45.86845412]
[1754926319503,0.67,179.06,179.05,5.98845412]
[1754926319704,0.67,179.06,179.05,45.86845412]
[1754926320108,3.71073997,179.06,179.05,45.86845412]
[1754926320304,0.03,179.07,179.05,45.86845412]
[1754926320618,0.03,179.07,179.06,5.98845412]
[1754926322103,0.7,179.07,179.05,45.86845412]
[1754926322303,0.67,179.06,179.05,45.86845412]
[1754926322516,0.03,179.07,179.05,51.45348623]
[1754926322717,0.03,179.07,179.06,5.98845412]
[1754926322903,0.03,179.07,179.05,45.46503211]
[1754926323111,0.03,179.07,179.06,5.98845412]
[1754926323708,0.03,179.07,179.06,11.57317432]
[1754926324020,0.03,179.07,179.06,5.5847202]
[1754926324218,0.03,179.07,179.06,11.57317432]
[1754926324625,0.03,179.07,179.06,27.37938989]
[1754926324996,0.03,179.07,179.06,11.57317432]
[1754926325202,0.7,179.07,179.06,39.88]
[1754926325506,0.03,179.07,179.06,39.88]
[1754926325707,0.7,179.07,179.02,5.58586185]
[1754926325899,0.7,179.07,179.04,5.98845412]
[1754926326100,0.67,179.06,179.05,39.86]
[1754926326404,10.36979315,179.06,179.05,39.86]
[1754926326604,8.51452907,179.06,179.05,39.86]
[1754926326925,3.71133903,179.06,179.05,45.84845412]
[1754926327139,3.74133903,179.07,179.05,45.84845412]
[1754926327437,3.74133903,179.07,179.06,5.98845412]
[1754926327606,3.75294069,179.07,179.06,5.98845412]
[1754926328027,0.03,179.07,179.06,5.98845412]
[1754926328802,0.03,179.07,179.06,6.68845412]
[1754926329000,0.03,179.07,179.06,21.79466969]
[1754926329208,0.03,179.07,179.06,21.39093577]
[1754926329415,0.03,179.07,179.06,27.37938989]
[1754926329798,5.58232871,179.14,179.06,27.37938989]
[1754926329799,0.67,179.17,179.09,15.10621557]
[1754926330122,0.67,179.17,179.16,5.98845412]
[1754926330435,0.67,179.19,179.16,49.38006849]
[1754926330608,4.1386655,179.18,179.16,49.38006849]
[1754926330940,0.67,179.17,179.16,39.86]
[1754926331441,0.67,179.19,179.16,49.38006849]
[1754926331609,4.13973786,179.18,179.16,49.38006849]
[1754926331802,0.67,179.19,179.16,49.38006849]
[1754926331998,31.58007809,179.21,179.16,39.86]
[1754926332220,0.67,179.18,179.16,54.96163112]
[1754926332434,26.67,179.2,179.17,9.52006849]
[1754926332608,4.13988568,179.19,179.18,49.38006849]
[1754926332926,4.80988568,179.19,179.18,49.38006849]
[1754926333128,4.80988568,179.19,179.18,39.86]
[1754926334502,4.80988568,179.19,179.18,49.38006849]
[1754926335124,4.81052858,179.19,179.18,49.38006849]
[1754926335319,10.39119714,179.19,179.18,39.86]
[1754926335918,10.39119714,179.19,179.16,9.52006849]
[1754926336262,4.81059558,179.18,179.17,39.84]
[1754926337320,4.81059558,179.18,179.15,39.84]
[1754926337636,10.39188709,179.17,179.15,39.84]
[1754926337843,4.81059558,179.16,179.15,39.84]
[1754926338408,4.81191495,179.16,179.15,39.84]
[1754926338622,44.65191495,179.16,179.05,0.06]
[1754926338908,5.58066856,179.19,179.15,9.52006849]
[1754926339219,4.14220281,179.18,179.15,10.22006849]
[1754926339422,5.58129151,179.17,179.14,9.52006849]
[1754926339626,5.58129151,179.17,179.1,10.22006849]
[1754926339627,9.52006849,179.15,179.1,10.22006849]
[1754926339824,10.10006849,179.16,179.11,49.36006849]
[1754926340048,4.14084504,179.15,179.07,15.10621557]
[1754926340249,9.52006849,179.12,179.08,39.84]
[1754926340564,9.52006849,179.16,179.11,9.52006849]
[1754926340732,9.52006849,179.16,179.12,0.7]
[1754926340930,9.52006849,179.16,179.08,39.84]
[1754926340931,9.52006849,179.13,179.1,39.84]
[1754926341126,9.52006849,179.14,179.1,39.84]
[1754926341325,9.52006849,179.14,179.11,0.7]
[1754926341532,15.10259586,179.14,179.11,0.7]
[1754926341744,13.24764782,179.13,179.1,39.84]
[1754926342051,3.72757933,179.12,179.08,49.36006849]
[1754926342364,13.24764782,179.12,179.08,40.54]
[1754926342578,15.10259586,179.14,179.09,10.22006849]
[1754926342865,15.10198553,179.15,179.1,10.22006849]
[1754926343031,26.0,179.17,179.14,9.52006849]
[1754926343235,10.10006849,179.19,179.14,9.52006849]
[1754926343236,3.72825058,179.16,179.15,9.52006849]
[1754926343433,49.36006849,179.2,179.15,9.52006849]
[1754926343434,3.72825058,179.18,179.15,9.52006849]
[1754926343658,3.72825058,179.19,179.15,10.22006849]
[1754926343856,3.72825058,179.19,179.15,0.7]
[1754926344164,3.72825058,179.19,179.16,10.22006849]
[1754926344472,3.72825058,179.2,179.18,9.52006849]
[1754926344674,3.75825058,179.22,179.19,9.52006849]
[1754926344963,0.03,179.22,179.19,10.22006849]
[1754926345166,0.03,179.22,179.2,9.52006849]
[1754926345459,7.89979949,179.22,179.19,10.22006849]
[1754926345661,3.75825058,179.22,179.19,10.22006849]
[1754926345962,0.03,179.22,179.19,10.22006849]
[1754926346149,140.03,179.22,179.19,10.22006849]
[1754926346359,3.72825058,179.21,179.2,10.22006849]
[1754926346540,0.03,179.22,179.2,0.7]
[1754926346861,6.18980397,179.22,179.18,9.52006849]
[1754926347054,19.43478092,179.22,179.17,49.36006849]
[1754926347241,3.72490846,179.21,179.17,49.36006849]
[1754926347641,3.72490846,179.21,179.17,50.06006849]
[1754926347959,6.18996558,179.22,179.17,50.06006849]
[1754926348262,5.60996558,179.22,179.18,0.7]
[1754926348436,9.52006849,179.2,179.16,39.84]
[1754926348755,0.58,179.21,179.16,39.84]
[1754926348756,9.52006849,179.19,179.16,39.84]
[1754926349540,5.58098002,179.18,179.16,39.84]
[1754926349949,18.82115592,179.18,179.16,39.84]
[1754926350257,15.10104851,179.18,179.16,39.84]
[1754926350441,5.58098002,179.18,179.16,39.84]
[1754926350648,15.10104851,179.18,179.16,39.84]
[1754926350854,5.58098002,179.18,179.16,39.84]
[1754926351158,9.52006849,179.17,179.16,39.84]
[1754926351367,15.10104851,179.18,179.16,39.84]
[1754926351562,15.10104851,179.18,179.16,40.55]
[1754926351971,179.9805738,179.21,179.16,40.55]
[1754926351972,5.58035714,179.2,179.17,0.71]
[1754926352141,9.30110733,179.2,179.16,39.84]
[1754926352475,9.30110733,179.2,179.17,0.71]
[1754926352655,18.82117582,179.2,179.17,0.71]
[1754926352855,15.10042563,179.2,179.16,39.84]
[1754926353052,3.71986406,179.19,179.16,40.55]
[1754926353363,181.13014942,179.21,179.17,0.71]
[1754926353556,175.55006849,179.21,179.17,0.71]
[1754926353744,181.13013106,179.21,179.17,0.71]
[1754926353943,171.61006257,179.21,179.17,0.71]
[1754926354165,171.61006257,179.21,179.18,0.71]
[1754926354365,3.71926672,179.2,179.19,0.71]
[1754926354569,175.55006849,179.21,179.19,0.71]
[1754926354570,0.03,179.21,179.19,9.52006849]
[1754926354742,0.03,179.21,179.2,0.71]
[1754926355066,0.03,179.21,179.18,0.71]
[1754926356058,9.55006849,179.21,179.16,49.36006849]
[1754926356247,9.52006849,179.2,179.17,40.0]
[1754926356656,9.55006849,179.21,179.18,0.71]
[1754926356841,9.55006849,179.21,179.17,40.0]
[1754926356842,0.03,179.21,179.19,0.71]
[1754926357038,0.03,179.21,179.17,40.71]
[1754926357267,9.55006849,179.21,179.18,0.71]
[1754926357446,0.03,179.21,179.17,40.0]
[1754926357854,13.27064432,179.21,179.17,40.0]
[1754926358051,9.55006849,179.21,179.17,40.71]
[1754926358449,9.55006849,179.21,179.18,0.71]
[1754926358871,0.03,179.21,179.2,9.52006849]
[1754926359172,0.03,179.21,179.2,50.21006849]
[1754926360153,0.03,179.21,179.2,55.79042563]
[1754926360471,0.03,179.21,179.2,70.8966412]
[1754926361570,0.03,179.21,179.2,55.79621557]
[1754926361871,0.03,179.21,179.2,65.27628406]
[1754926362249,0.03,179.21,179.2,0.71]
[1754926362469,0.03,179.21,179.2,40.67]
[1754926362874,0.03,179.21,179.2,50.19006849]
[1754926363075,0.03,179.21,179.2,70.8766412]
[1754926366861,0.03,179.21,179.2,61.35657271]
[1754926367051,0.03,179.21,179.2,70.8766412]
[1754926367252,0.03,179.22,179.21,15.10621557]
[1754926367450,0.03,179.22,179.21,51.33628406]
[1754926367870,0.03,179.22,179.21,56.91632981]
[1754926370582,0.03,179.22,179.21,96.83632981]
[1754926371071,0.03,179.22,179.21,87.31626132]
[1754926371277,0.03,179.22,179.21,96.83632981]
[1754926372081,3.72474548,179.28,179.25,15.10621557]
[1754926372263,9.52006849,179.31,179.27,9.52006849]
[1754926372472,3.73339849,179.3,179.28,39.92]
[1754926372670,4.34339849,179.3,179.28,39.92]
[1754926372884,0.61,179.3,179.28,39.92]
[1754926373066,9.52006849,179.3,179.28,39.92]
[1754926373386,9.52006849,179.3,179.29,39.9]
[1754926373891,13.25387926,179.3,179.29,39.9]
[1754926374266,3.73381077,179.3,179.29,39.9]
[1754926374462,0.61,179.33,179.29,39.9]
[1754926374688,3.73449294,179.32,179.29,46.18755591]
[1754926374897,3.73449294,179.33,179.29,55.7076244]
[1754926375980,9.52006849,179.32,179.29,39.9]
[1754926376385,9.52006849,179.33,179.29,40.61]
[1754926376584,3.73148632,179.32,179.29,39.9]
[1754926376892,9.52006849,179.31,179.29,39.9]
[1754926377699,5.57632288,179.33,179.25,15.10621557]
[1754926377866,9.52006849,179.28,179.26,39.88]
[1754926378195,9.52006849,179.29,179.26,40.59]
[1754926378799,145.57703443,179.31,179.26,40.59]
[1754926378968,13.25013633,179.3,179.26,40.59]
[1754926379169,9.52006849,179.3,179.26,40.59]
[1754926379888,9.52006849,179.29,179.26,40.59]
[1754926380292,9.52006849,179.27,179.23,6.27926177]
[1754926380592,0.61,179.29,179.24,39.86]
[1754926380593,9.52006849,179.26,179.24,39.86]
[1754926380972,9.52006849,179.31,179.25,10.22006849]
[1754926381193,9.52006849,179.3,179.26,39.86]
[1754926381495,9.52006849,179.27,179.23,0.7]
[1754926381675,9.52006849,179.26,179.24,39.86]
[1754926381875,0.61,179.29,179.24,39.86]
[1754926381876,9.52006849,179.28,179.24,39.86]
[1754926382080,9.52006849,179.29,179.25,9.52006849]
[1754926382274,9.52006849,179.32,179.27,9.52006849]
[1754926382497,13.24918073,179.31,179.28,40.56]
[1754926382667,9.52006849,179.31,179.28,40.56]
[1754926382864,9.52006849,179.3,179.28,39.86]
[1754926384292,9.52006849,179.29,179.28,39.86]
[1754926384503,15.707771,179.29,179.23,0.7]
[1754926384792,9.52006849,179.26,179.24,39.82]
[1754926385093,9.52006849,179.27,179.24,40.52]
[1754926385292,6.18770251,179.29,179.24,40.52]
[1754926385473,9.52006849,179.27,179.24,40.52]
[1754926385995,9.52006849,179.27,179.2,15.16621557]
[1754926385996,9.52006849,179.25,179.21,0.7]
[1754926386184,5.57770251,179.29,179.21,0.7]
[1754926386185,9.52006849,179.23,179.22,39.82]
[1754926386377,9.52006849,179.25,179.22,40.52]
[1754926386987,9.52006849,179.24,179.22,39.82]
[1754926387293,9.52006849,179.23,179.22,39.82]
[1754926387480,9.52006849,179.23,179.2,0.06]
[1754926387681,9.52006849,179.22,179.21,39.82]
[1754926389398,6.18886718,179.25,179.21,39.82]
[1754926389697,9.52006849,179.22,179.21,39.82]
[1754926390602,9.52006849,179.22,179.2,0.06]
[1754926390799,9.52006849,179.21,179.2,39.88]
[1754926391003,9.52006849,179.22,179.2,39.88]
[1754926392382,9.52006849,179.21,179.2,39.88]
[1754926392579,9.52006849,179.21,179.2,0.06]
[1754926392794,13.86576231,179.21,179.2,0.06]
[1754926393306,18.01570088,179.21,179.2,0.06]
[1754926393483,3.73569382,179.21,179.2,0.06]
[1754926393809,9.3155149,179.22,179.2,0.06]
[1754926393983,18.83558339,179.22,179.2,0.06]
[1754926394186,3.73569382,179.21,179.2,0.06]
[1754926394579,26.0,179.24,179.2,6.70842048]
[1754926394784,3.73569382,179.23,179.2,0.76]
[1754926395101,3.73569382,179.23,179.21,0.7]
[1754926395302,3.73569382,179.24,179.21,0.7]
[1754926395696,9.6841143,179.24,179.21,40.52]
[1754926396001,9.6841143,179.24,179.21,39.82]
[1754926396405,3.73569382,179.24,179.21,40.52]
[1754926396910,3.73569382,179.24,179.22,0.7]
[1754926397206,3.73569382,179.25,179.22,0.7]
[1754926397403,3.73569382,179.24,179.22,0.7]
[1754926397600,3.73569382,179.25,179.22,0.7]
[1754926397793,11.52695193,179.26,179.22,0.7]
[1754926397794,3.73569382,179.24,179.22,0.7]
[1754926397984,3.73569382,179.25,179.22,0.7]
[1754926398186,3.73569382,179.24,179.22,0.7]
[1754926398382,3.73569382,179.25,179.22,0.7]
[1754926398588,3.73569382,179.24,179.22,0.7]
[1754926398898,3.73569382,179.25,179.23,0.7]
[1754926399103,3.73569382,179.26,179.23,0.7]
[1754926399281,3.73569382,179.25,179.23,0.7]
[1754926399488,3.73569382,179.26,179.23,5.94842048]
[1754926399802,3.73569382,179.25,179.22,0.7]
[1754926400003,3.73569382,179.26,179.21,51.34844189]
[1754926400191,3.73569382,179.26,179.22,0.7]
[1754926400192,3.73569382,179.25,179.22,0.7]
[1754926400581,3.73569382,179.25,179.23,0.7]
[1754926400777,3.73569382,179.26,179.24,0.7]
[1754926401092,3.73569382,179.25,179.24,0.7]
[1754926401598,3.73569382,179.26,179.22,5.94842048]
[1754926401806,3.73569382,179.25,179.23,0.7]
[1754926401982,3.73569382,179.26,179.23,0.7]
[1754926402187,11.52663812,179.27,179.23,0.7]
[1754926402188,3.73569382,179.25,179.23,0.7]
[1754926402497,3.73569382,179.26,179.22,5.94842048]
[1754926402709,3.73569382,179.25,179.24,5.94842048]
[1754926402908,3.73569382,179.28,179.24,40.52]
[1754926403110,13.84602698,179.27,179.24,40.52]
[1754926403290,7.8976065,179.26,179.24,40.52]
[1754926403490,3.73569382,179.25,179.24,40.52]
[1754926403798,3.73569382,179.26,179.24,40.52]
[1754926403998,3.73569382,179.25,179.24,39.82]
[1754926404200,9.6841143,179.27,179.24,39.82]
[1754926404486,3.73569382,179.26,179.25,5.94842048]
[1754926404688,3.73569382,179.29,179.25,6.64842048]
[1754926404902,7.89856607,179.28,179.26,0.7]
[1754926405105,3.73569382,179.27,179.26,5.94842048]
[1754926405308,3.73569382,179.29,179.26,45.76842048]
[1754926405588,3.73569382,179.28,179.26,45.76842048]
[1754926405791,3.73569382,179.29,179.27,6.64842048]
[1754926406119,3.73569382,179.29,179.28,0.7]
[1754926406309,3.73569382,179.29,179.24,0.7]
[1754926406310,15.26179775,179.29,179.24,0.7]
[1754926406499,9.6841143,179.28,179.25,39.82]
[1754926406979,5.94842048,179.27,179.25,39.82]
[1754926407180,3.73569382,179.28,179.26,0.7]
[1754926408395,5.94842048,179.28,179.26,0.7]
[1754926408595,9.6841143,179.28,179.26,0.7]
[1754926408912,3.73569382,179.27,179.25,39.82]
[1754926409414,3.73569382,179.27,179.25,40.48]
[1754926410009,5.94842048,179.29,179.26,0.66]
[1754926410217,3.74606597,179.28,179.26,0.66]
[1754926411003,9.6943051,179.29,179.27,40.48]
[1754926411328,3.74588462,179.28,179.27,0.66]
[1754926411504,3.74588462,179.28,179.27,40.48]
[1754926411714,3.74588462,179.28,179.27,39.82]
[1754926412212,9.32382224,179.28,179.25,0.66]
[1754926412415,11.5263581,179.28,179.27,39.82]
[1754926412617,15.27243178,179.28,179.27,39.82]
[1754926413620,15.27243178,179.28,179.26,39.82]
[1754926413840,9.69449416,179.27,179.26,39.82]
[1754926414401,3.74607368,179.27,179.26,39.82]
[1754926415011,3.74607368,179.27,179.26,40.48]
[1754926415236,3.74607368,179.28,179.26,40.48]
[1754926415537,9.3237379,179.29,179.27,0.66]
[1754926415750,9.69449416,179.28,179.26,39.82]
[1754926415954,3.74607368,179.27,179.26,39.82]
[1754926416232,3.74607368,179.28,179.26,40.48]
[1754926416433,3.74607368,179.28,179.27,0.66]
[1754926416820,9.69449416,179.29,179.27,0.66]
[1754926417144,3.74607368,179.29,179.27,0.66]
[1754926417324,15.27208642,179.29,179.26,39.82]
[1754926417526,3.74607368,179.28,179.26,40.48]
[1754926418237,15.27240639,179.28,179.26,39.82]
[1754926418542,5.94842048,179.28,179.26,39.82]
[1754926418720,9.69352489,179.28,179.24,0.66]
[1754926418917,3.74510441,179.28,179.25,40.48]
[1754926419238,3.74510441,179.29,179.27,5.94842048]
[1754926419437,0.03,179.3,179.28,46.42842048]
[1754926419738,0.03,179.3,179.28,40.48]
[1754926420139,3.77510441,179.3,179.28,40.48]
[1754926420340,0.03,179.3,179.28,40.48]
[1754926420547,3.77510441,179.3,179.28,40.48]
[1754926421146,3.77510441,179.3,179.29,0.66]
[1754926421317,0.03,179.3,179.29,0.66]
[1754926421524,3.77510441,179.3,179.29,0.66]
[1754926421740,0.03,179.3,179.29,0.66]
[1754926422325,0.03,179.3,179.29,6.23755591]
[1754926422533,0.03,179.3,179.29,12.18597639]
[1754926422738,0.03,179.3,179.29,6.23755591]
[1754926422920,0.03,179.3,179.29,12.18597639]
[1754926423452,0.03,179.3,179.29,27.29219196]
[1754926427620,0.03,179.3,179.29,0.66]
[1754926428022,0.03,179.3,179.29,6.60842048]
[1754926429445,0.03,179.3,179.29,21.71463605]
[1754926429629,0.03,179.3,179.29,27.29219196]
[1754926429835,0.03,179.3,179.29,21.34377148]
[1754926430145,0.03,179.3,179.29,27.29219196]
[1754926430341,0.03,179.34,179.32,31.57662279]
[1754926430565,0.03,179.34,179.33,45.74842048]
[1754926430722,0.03,179.34,179.33,46.40842048]
[1754926431145,0.03,179.34,179.33,61.51463605]
[1754926431625,0.03,179.34,179.33,0.66]
[1754926431826,0.03,179.34,179.33,39.86]
[1754926432054,0.03,179.34,179.32,5.57662279]
[1754926432262,0.03,179.34,179.33,39.86]
[1754926432741,9.72352489,179.34,179.31,5.57689644]
[1754926432939,5.97842048,179.34,179.32,39.86]
[1754926433128,3.74715223,179.33,179.32,39.86]
[1754926433558,5.97842048,179.34,179.32,39.86]
[1754926434122,0.03,179.34,179.32,45.80842048]
[1754926434327,0.03,179.34,179.33,5.94842048]
[1754926434553,0.03,179.34,179.33,11.5247323]
[1754926434751,0.03,179.34,179.33,6.23631182]
[1754926434944,0.03,179.34,179.33,52.0447323]
[1754926435447,0.03,179.34,179.33,52.0247323]
[1754926436346,0.03,179.34,179.33,67.13094787]
[1754926436746,0.03,179.34,179.33,39.84]
[1754926437655,0.03,179.34,179.33,67.13094787]
[1754926438947,0.03,179.34,179.33,5.57631182]
[1754926439145,0.03,179.34,179.33,45.53631182]
[1754926439450,0.03,179.34,179.33,51.4847323]
[1754926439652,0.03,179.34,179.33,52.1647323]
[1754926439971,0.03,179.34,179.33,45.53631182]
[1754926440136,0.03,179.34,179.33,51.4847323]
[1754926440333,0.03,179.34,179.33,46.03631182]
[1754926440969,0.64,179.34,179.33,40.46]
[1754926441132,0.03,179.34,179.33,40.46]
[1754926441758,5.97842048,179.34,179.33,0.5]
[1754926441970,5.97842048,179.34,179.33,40.44]
[1754926442148,9.53452582,179.34,179.33,40.44]
[1754926442641,9.53452582,179.34,179.33,39.94]
[1754926443171,10.14452582,179.34,179.28,0.68]
[1754926443338,9.50452582,179.33,179.29,39.94]
[1754926443531,0.03,179.34,179.3,0.68]
[1754926443532,9.53452582,179.34,179.3,0.68]
[1754926443868,9.53452582,179.34,179.28,5.57780922]
[1754926443869,0.03,179.34,179.31,39.94]